fUST/lending_fUST_20260103
["ID","MTS","AMOUNT","RATE_DAILY","PERIOD"]
[400348399,1767408307049,500.0,0.00013699,2]
[400348400,1767408307101,1000.0,0.00014247,2]
[400348401,1767408307164,1500.0,0.00014795,2]
[400348402,1767408308665,300.0,0.00013673,2]
[400348403,1767408308710,900.0,0.00014768,2]
[400348404,1767408308987,600.0,0.00014221,2]
[400348405,1767408310276,500.0,0.00013273,2]
[400348406,1767408310383,1000.0,0.00013821,2]
[400348407,1767408310435,1500.0,0.00014368,2]
[400348409,1767408368911,500.0,0.00013699,2]
[400348410,1767408368943,220.0,0.00012497,2]
[400348411,1767408368973,1019.06985239,0.00014247,2]
[400348412,1767408373331,335.68,0.00011102,2]
[400348414,1767408374193,671.37,0.00012111,2]
[400348415,1767408374599,1007.05,0.0001312,2]
[400348416,1767408375496,1342.73,0.00014129,2]
[400348417,1767408378943,1000.0,0.00014247,2]
[400348418,1767408378971,500.0,0.00013699,2]
[400348419,1767408379063,1500.0,0.00014795,2]
[400348420,1767408379131,1000.0,0.00014247,2]
[400348421,1767408379182,1500.0,0.00014795,2]
[400348422,1767408379211,500.0,0.00013273,2]
[400348423,1767408379243,500.0,0.00013699,2]
[400348424,1767408379351,500.0,0.00013699,2]
[400348425,1767408379403,1000.0,0.00013821,2]
[400348426,1767408379439,1500.0,0.00014368,2]
[400348427,1767408379467,1000.0,0.00014247,2]
[400348428,1767408379755,1500.0,0.00014795,2]
[400348430,1767408429246,300.0,0.00013673,2]
[400348431,1767408429442,600.0,0.00014221,2]
[400348432,1767408429476,900.0,0.00014768,2]
[400348433,1767408429956,500.0,0.00013273,2]
[400348434,1767408430023,1000.0,0.00013821,2]
[400348435,1767408430055,1500.0,0.00014368,2]
[400348436,1767408436667,5640.93378842,0.000148,2]
[400348437,1767408452812,292.96,0.00011073,2]
[400348438,1767408453207,585.92,0.0001208,2]
[400348439,1767408453600,878.88,0.00013086,2]
[400348440,1767408453998,1171.84,0.00014093,2]
[400348442,1767408491298,500.0,0.00013699,2]
[400348443,1767408491344,1000.0,0.00014247,2]
[400348444,1767408491398,1500.0,0.00014795,2]
[400348445,1767408491432,500.0,0.00013699,2]
[400348446,1767408491468,500.0,0.00013699,2]
[400348447,1767408491499,1000.0,0.00014247,2]
[400348448,1767408491548,1000.0,0.00014247,2]
[400348449,1767408491574,1500.0,0.00014795,2]
[400348450,1767408491639,500.0,0.00013273,2]
[400348451,1767408491713,1500.0,0.00014795,2]
[400348452,1767408491786,1500.0,0.00014368,2]
[400348453,1767408491985,1000.0,0.00013821,2]
[400348455,1767408530504,255.67,0.00011077,2]
[400348456,1767408530913,511.35,0.00012084,2]
[400348457,1767408531310,767.02,0.00013091,2]
[400348458,1767408531695,1022.7,0.00014098,2]
[400348459,1767408551610,300.0,0.00013673,2]
[400348460,1767408551659,600.0,0.00014221,2]
[400348461,1767408551710,900.0,0.00014768,2]
[400348462,1767408553258,500.0,0.00013273,2]
[400348463,1767408553312,1000.0,0.00013821,2]
[400348464,1767408553486,1500.0,0.00014368,2]
[400348469,1767408585079,820.33,0.00028767,120]
[400348470,1767408606349,500.0,0.00013699,2]
[400348471,1767408606387,1000.0,0.00014247,2]
[400348472,1767408606448,1453.02542102,0.00014795,2]
[400348473,1767408609554,223.13,0.00011244,2]
[400348474,1767408609979,446.27,0.00012266,2]
[400348475,1767408610411,669.4,0.00013288,2]
[400348476,1767408610797,892.54,0.0001431,2]
[400348477,1767408611988,58450.56957099,0.000148,2]
[400348490,1767408631643,-500.0,0.00013273,2]
[400348491,1767408631654,-500.0,0.00013699,2]
[400348492,1767408631664,-500.0,0.00013699,2]
[400348493,1767408631674,-500.0,0.00013699,2]
[400348495,1767408631684,-1000.0,0.00013821,2]
[400348497,1767408631693,-1000.0,0.00014247,2]
[400348499,1767408631703,-1000.0,0.00014247,2]
[400348500,1767408631713,-1000.0,0.00014247,2]
[400348501,1767408631723,-1500.0,0.00014368,2]
[400348502,1767408631733,-1500.0,0.00014795,2]
[400348503,1767408631743,-1500.0,0.00014795,2]
[400348504,1767408631753,-1500.0,0.00014795,2]
[400348505,1767408631762,-500.0,0.00014799,2]
[400348506,1767408631772,-83.82090303,0.00014799,2]
[400348512,1767408638689,-416.17909697,0.00014799,2]
[400348513,1767408638700,-201.22894047,0.00014799,2]
[400348514,1767408638710,-485.52415171,0.00014799,2]
[400348515,1767408638721,-500.0,0.00014799,2]
[400348516,1767408638731,-500.0,0.00014799,2]
[400348517,1767408638742,-221.11533983,0.00014799,2]
[400348518,1767408638755,-500.0,0.00014799,2]
[400348519,1767408638765,-500.0,0.00014799,2]
[400348520,1767408638776,-500.0,0.00014799,2]
[400348521,1767408638786,-500.0,0.00014799,2]
[400348522,1767408638796,-500.0,0.00014799,2]
[400348523,1767408638807,-500.0,0.00014799,2]
[400348524,1767408638818,-500.0,0.00014799,2]
[400348525,1767408638828,-345.56667157,0.00014799,2]
[400348526,1767408638839,-500.0,0.00014799,2]
[400348527,1767408638849,-500.0,0.00014799,2]
[400348528,1767408638860,-443.96296871,0.00014799,2]
[400348529,1767408638870,-327.55362673,0.00014799,2]
[400348530,1767408638880,-500.0,0.00014799,2]
[400348531,1767408638890,-14398.25109854,0.000148,2]
[400348532,1767408638903,-23031.71340044,0.000148,2]
[400348533,1767408638914,-518.21374153,0.000148,2]
[400348534,1767408638926,-481.33546386,0.000148,2]
[400348547,1767408639853,-499.7358338,0.000148,2]
[400348548,1767408639965,-24969.26443669,0.000148,2]
[400348549,1767408640010,-13903.01011793,0.000148,2]
[400348558,1767408647925,-10316.40758778,0.00014798,2]
[400348559,1767408647935,-4935.81706485,0.00014799,2]
[400348560,1767408647944,-122799.51504733,0.000148,2]
[400348618,1767409683735,318.51,6.993e-05,2]
[400348651,1767409831750,-1056.11961569,0.00011073,2]
[400348657,1767409831804,-932.08251397,0.00011073,2]
[400348848,1767409838046,-39.43787034,0.00011073,2]
[400348849,1767409838057,-299.42766255,0.00011116,2]
[400348850,1767409838067,-4055.27,0.0001208,2]
[400348851,1767409838076,-300.0,0.00013082,2]
[400348852,1767409838086,-300.0,0.00013082,2]
[400348853,1767409838096,-6082.91,0.00013087,2]
[400348854,1767409838106,-353.32464181,0.00013116,2]
[400348855,1767409838116,-3777.38167513,0.0001321,2]
[400348856,1767409838125,-470.11120531,0.0001321,2]
[400348857,1767409838140,-500.0,0.00013273,2]
[400348858,1767409838152,-500.0,0.00013273,2]
[400348859,1767409838162,-500.0,0.00013273,2]
[400348860,1767409838172,-500.0,0.00013309,2]
[400348861,1767409838181,-500.0,0.00013309,2]
[400348862,1767409838191,-336.66063553,0.00013309,2]
[400348863,1767409838201,-500.0,0.00013309,2]
[400348864,1767409838211,-358.72180553,0.00013309,2]
[400348865,1767409838222,-593.732074,0.00013309,2]
[400348866,1767409838232,-500.0,0.00013309,2]
[400348867,1767409838242,-500.0,0.00013309,2]
[400348868,1767409838252,-500.0,0.00013309,2]
[400348869,1767409838262,-500.0,0.00013309,2]
[400348870,1767409838271,-500.0,0.00013309,2]
[400348871,1767409838406,-500.0,0.00013309,2]
[400348872,1767409838417,-542.40118962,0.00013309,2]
[400348873,1767409838427,-515.5930176,0.00013309,2]
[400348874,1767409838437,-56203.91668643,0.0001331,2]
[400348875,1767409838449,-13710.00440085,0.0001331,2]
[400348876,1767409838460,-496749.7860672,0.0001331,2]
[400348877,1767409838472,-2622.48263238,0.0001331,2]
[400348878,1767409838483,-229884.09118629,0.0001331,2]
[400348879,1767409838495,-1027.0,0.0001331,2]
[400348925,1767409840058,-451.695,0.0001331,2]
[400349263,1767409845998,-783.43402377,0.0001331,2]
[400349264,1767409846051,-23798.71,0.0001331,2]
[400349265,1767409846062,-1783.24239403,0.0001331,2]
[400349274,1767410238607,158.63,0.00028767,120]
[400349275,1767410432282,1000.0,8e-05,10]
[400349301,1767410912125,298.19300047,0.0002417,120]
[400349303,1767410945414,16.32984333,0.00011,10]
[400349317,1767411031930,-1002.31568725,0.00011,10]
[400349323,1767411038033,-2729.02578498,0.00011,10]
[400349326,1767411038247,-1252.32868444,0.00011,10]
[400349327,1767411038259,-326.66827932,0.00011054,2]
[400349328,1767411038270,-1613.95229511,0.00011109,2]
[400349329,1767411038295,-314.15770489,0.00011109,2]
[400349330,1767411038304,-300.0,0.00012118,2]
[400349331,1767411038314,-3856.21,0.00012119,2]
[400349332,1767411038324,-416.0,0.00012532,2]
[400349333,1767411038334,-723.63,0.00012532,2]
[400349334,1767411038345,-239.513,0.00012532,2]
[400349335,1767411038359,-1407.26291248,0.000129,2]
[400349336,1767411038371,-2911.57701929,0.000129,2]
[400349337,1767411038381,-2046.66546486,0.000129,2]
[400349338,1767411038392,-25408.17882111,0.00013,7]
[400349339,1767411038405,-74628.76420446,0.00013,7]
[400349340,1767411038415,-245.75765987,0.00013,3]
[400349341,1767411038425,-12980.14495437,0.00013,2]
[400349342,1767411038435,-385.46856959,0.00013055,2]
[400349343,1767411038445,-187.48770083,0.00013072,2]
[400349344,1767411038455,-2046.66546483,0.00013075,2]
[400349345,1767411038466,-2154.949005,0.00013112,2]
[400349346,1767411038477,-5784.32,0.00013129,2]
[400349347,1767411038487,-500.0,0.00013171,2]
[400349348,1767411038499,-235.66244487,0.00013171,2]
[400349349,1767411038513,-500.0,0.00013171,2]
[400349350,1767411038524,-500.0,0.00013171,2]
[400349351,1767411038534,-265.6124518,0.00013171,2]
[400349352,1767411038544,-500.0,0.00013171,2]
[400349353,1767411038555,-500.0,0.00013171,2]
[400349354,1767411038566,-500.0,0.00013171,2]
[400349355,1767411038576,-551.10526387,0.00013171,2]
[400349356,1767411038587,-210.53989614,0.00013171,2]
[400349357,1767411038597,-400177.73588279,0.00013172,2]
[400349358,1767411038607,-2046.66546483,0.00013249,2]
[400349359,1767411038618,-21044.76281294,0.00013272,2]
[400349360,1767411038628,-500.0,0.00013273,2]
[400349361,1767411038639,-500.0,0.00013273,2]
[400349362,1767411038649,-172.22882441,0.00013273,2]
[400349363,1767411038666,-500.0,0.00013273,2]
[400349364,1767411038686,-500.0,0.00013273,2]
[400349365,1767411038697,-502.93210687,0.00013273,2]
[400349366,1767411038708,-588.2682097,0.00013273,2]
[400349367,1767411038719,-215.98609616,0.00013273,2]
[400349368,1767411038729,-500.0,0.00013273,2]
[400349369,1767411038739,-500.0,0.00013273,2]
[400349370,1767411038750,-501.74485586,0.00013273,2]
[400349371,1767411038760,-500.0,0.00013273,2]
[400349372,1767411038770,-502.75329392,0.00013273,2]
[400349373,1767411038779,-500.0,0.00013273,2]
[400349374,1767411038789,-500.0,0.00013273,2]
[400349375,1767411038798,-501.13693143,0.00013273,2]
[400349376,1767411038808,-500.0,0.00013273,2]
[400349377,1767411038817,-500.0,0.00013273,2]
[400349378,1767411038827,-500.0,0.00013273,2]
[400349379,1767411038837,-420.0,0.00013301,2]
[400349380,1767411038847,-500.0,0.00013301,2]
[400349381,1767411038856,-2046.66546483,0.00013424,2]
[400349382,1767411038866,-180.32346768,0.00013424,2]
[400349383,1767411038876,-230.34927748,0.00013424,2]
[400349384,1767411038886,-282.25604853,0.00013424,2]
[400349385,1767411038896,-184.12121086,0.00013424,2]
[400349386,1767411038907,-161.30460818,0.00013424,2]
[400349387,1767411038917,-10000.0,0.0001354,2]
[400349388,1767411038927,-375.41043889,0.00013575,2]
[400349389,1767411038936,-228.36,0.00013595,2]
[400349390,1767411038946,-2046.66546483,0.00013598,2]
[400349391,1767411038956,-567.2239056,0.000136,2]
[400349392,1767411038966,-300.0,0.00013673,2]
[400349393,1767411038975,-500.0,0.00013698,2]
[400349394,1767411038985,-500.0,0.00013698,2]
[400349395,1767411038995,-500.0,0.00013698,2]
[400349396,1767411039006,-500.0,0.00013698,2]
[400349397,1767411039016,-500.0,0.00013698,2]
[400349398,1767411039026,-500.0,0.00013698,2]
[400349399,1767411039036,-500.0,0.00013698,2]
[400349400,1767411039047,-500.0,0.00013698,2]
[400349401,1767411039057,-500.0,0.00013698,2]
[400349402,1767411039067,-500.0,0.00013698,2]
[400349403,1767411039077,-500.0,0.00013698,2]
[400349404,1767411039087,-500.0,0.00013698,2]
[400349405,1767411039097,-500.0,0.00013698,2]
[400349406,1767411039107,-500.0,0.00013698,2]
[400349407,1767411039117,-500.0,0.00013698,2]
[400349408,1767411039127,-500.0,0.00013698,2]
[400349409,1767411039137,-500.0,0.00013698,2]
[400349410,1767411039147,-500.0,0.00013698,2]
[400349411,1767411039160,-431.46701577,0.00013698,2]
[400349412,1767411039170,-500.0,0.00013698,2]
[400349413,1767411039180,-500.0,0.00013698,2]
[400349414,1767411039190,-500.0,0.00013698,2]
[400349415,1767411039200,-500.0,0.00013698,2]
[400349416,1767411039211,-500.0,0.00013698,2]
[400349417,1767411039221,-500.0,0.00013698,2]
[400349418,1767411039232,-500.0,0.00013698,2]
[400349419,1767411039243,-534.93391157,0.00013698,2]
[400349420,1767411039253,-1000.0,0.00013698,2]
[400349421,1767411039263,-1000.0,0.00013698,2]
[400349422,1767411039274,-1000.0,0.00013698,2]
[400349423,1767411039285,-1000.0,0.00013698,2]
[400349424,1767411039297,-763.4256728,0.00013698,2]
[400349425,1767411039307,-734.128779,0.00013699,2]
[400349426,1767411039317,-1301.856439,0.00013699,2]
[400349427,1767411039327,-2784.4482943,0.00013699,2]
[400349428,1767411039337,-500.0,0.00013699,2]
[400349429,1767411039347,-500.0,0.00013699,2]
[400349430,1767411039358,-523.86206452,0.00013699,2]
[400349431,1767411039368,-500.0,0.00013699,2]
[400349432,1767411039378,-173.43481614,0.00013699,2]
[400349433,1767411039388,-524.38628489,0.00013699,2]
[400349434,1767411039398,-501.68036226,0.00013699,2]
[400349435,1767411039408,-501.03777855,0.00013699,2]
[400349436,1767411039419,-500.25698382,0.00013699,2]
[400349437,1767411039429,-166.22600265,0.00013699,2]
[400349438,1767411039440,-501.36755578,0.00013699,2]
[400349439,1767411039450,-500.69541126,0.00013699,2]
[400349440,1767411039460,-500.0,0.00013699,2]
[400349441,1767411039471,-224.00538272,0.00013699,2]
[400349442,1767411039481,-599.952037,0.00013699,2]
[400349443,1767411039491,-501.99402388,0.00013699,2]
[400349444,1767411039504,-500.0,0.00013699,2]
[400349445,1767411039514,-501.88622503,0.00013699,2]
[400349446,1767411039524,-500.0,0.00013699,2]
[400349447,1767411039536,-508.49692225,0.00013699,2]
[400349448,1767411039546,-502.77232264,0.00013699,2]
[400349449,1767411039556,-500.0,0.00013699,2]
[400349450,1767411039567,-514.59065759,0.00013699,2]
[400349451,1767411039577,-636.94741623,0.00013699,2]
[400349452,1767411039587,-502.96392762,0.00013699,2]
[400349453,1767411039598,-500.0,0.00013699,2]
[400349454,1767411039608,-500.69400117,0.00013699,2]
[400349455,1767411039618,-500.0,0.00013699,2]
[400349456,1767411039628,-518.97662137,0.00013699,2]
[400349457,1767411039638,-501.04622442,0.00013699,2]
[400349458,1767411039649,-500.0,0.00013699,2]
[400349459,1767411039661,-500.48963554,0.00013699,2]
[400349460,1767411039671,-500.0,0.00013699,2]
[400349461,1767411039682,-500.0,0.00013699,2]
[400349462,1767411039692,-500.0,0.00013699,2]
[400349463,1767411039702,-501.19324627,0.00013699,2]
[400349464,1767411039712,-500.0,0.00013699,2]
[400349465,1767411039722,-500.0,0.00013699,2]
[400349468,1767411039819,-500.0,0.00013699,2]
[400349470,1767411039839,-512.02929509,0.00013699,2]
[400349473,1767411039849,-1000.0,0.00013821,2]
[400349474,1767411039859,-1000.0,0.00013821,2]
[400349477,1767411039869,-1000.0,0.00013821,2]
[400349479,1767411039879,-499.60347753,0.00013821,2]
[400349481,1767411039889,-503.10298411,0.00013821,2]
[400349483,1767411039898,-1000.0,0.00013821,2]
[400349484,1767411039907,-1000.0,0.00013821,2]
[400349486,1767411039917,-504.66713546,0.00013821,2]
[400349488,1767411039927,-502.16192531,0.00013821,2]
[400349490,1767411039936,-376.6484888,0.00013821,2]
[400349492,1767411039946,-1000.0,0.00013821,2]
[400349494,1767411039955,-1001.86225518,0.00013821,2]
[400349496,1767411039965,-252.73777953,0.00013854,2]
[400349497,1767411039975,-600.0,0.00014121,2]
[400349499,1767411039985,-7712.42,0.00014139,2]
[400349501,1767411039994,-30000.0,0.00014178,2]
[400349503,1767411040003,-1501.7397052,0.00014178,2]
[400349505,1767411040014,-574.12855637,0.00014178,2]
[400349507,1767411040024,-250.0,0.00014178,2]
[400349509,1767411040033,-250.0,0.00014178,2]
[400349511,1767411040043,-250.0,0.00014178,2]
[400349513,1767411040053,-250.0,0.00014178,2]
[400349515,1767411040062,-250.0,0.00014178,2]
[400349517,1767411040072,-250.0,0.00014178,2]
[400349519,1767411040081,-250.0,0.00014178,2]
[400349521,1767411040091,-600.0,0.00014221,2]
[400349523,1767411040100,-1000.0,0.00014247,2]
[400349525,1767411040110,-1000.0,0.00014247,2]
[400349527,1767411040120,-1001.2918638,0.00014247,2]
[400349529,1767411040130,-509.06878017,0.00014247,2]
[400349531,1767411040139,-1000.0,0.00014247,2]
[400349533,1767411040149,-1000.47622701,0.00014247,2]
[400349534,1767411040158,-1002.15696691,0.00014247,2]
[400349536,1767411040168,-193.28138901,0.00014247,2]
[400349538,1767411040178,-633.76515687,0.00014247,2]
[400349540,1767411040189,-981.71963328,0.00014247,2]
[400349542,1767411040198,-1000.0,0.00014247,2]
[400349544,1767411040208,-1000.0,0.00014247,2]
[400349546,1767411040217,-1000.0,0.00014247,2]
[400349548,1767411040227,-1000.0,0.00014247,2]
[400349550,1767411040236,-1000.0,0.00014247,2]
[400349552,1767411040247,-1005.59689034,0.00014368,2]
[400349554,1767411040256,-1500.0,0.00014368,2]
[400349557,1767411040266,-1500.0,0.00014368,2]
[400349559,1767411040276,-1500.0,0.00014368,2]
[400349561,1767411040286,-503.04657985,0.00014368,2]
[400349563,1767411040295,-1500.0,0.00014368,2]
[400349565,1767411040305,-368.32805934,0.00014591,2]
[400349566,1767411040315,-303.7438222,0.00014712,2]
[400349568,1767411040325,-600.2103909,0.00014712,2]
[400349570,1767411040334,-303.7438221,0.00014712,2]
[400349572,1767411040343,-600.2103909,0.00014712,2]
[400349574,1767411040353,-303.7438221,0.00014712,2]
[400349576,1767411040362,-600.2103909,0.00014712,2]
[400349578,1767411040372,-303.7438221,0.00014712,2]
[400349580,1767411040383,-525.6219106,0.00014712,2]
[400349582,1767411040394,-31110.0,0.00014726,2]
[400349584,1767411040404,-595.37131296,0.00014726,2]
[400349586,1767411040413,-900.0,0.00014768,2]
[400349588,1767411040423,-500.0,0.00014794,2]
[400349590,1767411040432,-1500.0,0.00014795,2]
[400349591,1767411040442,-1500.0,0.00014795,2]
[400349594,1767411040452,-1500.0,0.00014795,2]
[400349595,1767411040462,-184.37215682,0.00014845,2]
[400349597,1767411040471,-163.152,0.00014845,2]
[400349599,1767411040481,-35559.04507361,0.00014882,2]
[400349883,1767411046198,-250.0,0.00014178,2]
[400349884,1767411046207,-250.0,0.00014178,2]
[400349885,1767411046217,-250.0,0.00014178,2]
[400349886,1767411046227,-250.0,0.00014178,2]
[400349887,1767411046237,-7698.0,0.00014882,2]
[400349898,1767411477241,170.668997,0.00011392,31]
[400349899,1767411477468,170.668997,0.00011392,46]
[400349900,1767411477833,170.668997,0.00011392,61]
[400349901,1767411477883,170.668997,0.00011392,75]
[400349902,1767411478076,170.668997,0.00011392,90]
[400349903,1767411478268,170.668997,0.00011392,105]
[400349904,1767411478466,170.668997,0.00011392,120]
[400349909,1767411734555,195.21854493,0.00028767,120]
[400349910,1767411754308,10000.0,0.00028767,120]
[400349917,1767412195391,-5000.0,0.00010469,14]
[400349918,1767412195634,-315.96554234,0.00010683,2]
[400349919,1767412195663,-225.66464323,0.0001079,2]
[400349920,1767412195691,-1162.77452209,0.00011,2]
[400349921,1767412195720,-867.4038667,0.00011014,2]
[400349922,1767412195970,-4684.0699767,0.00011119,2]
[400349923,1767412196009,-631.8700466,0.00011119,2]
[400349924,1767412196039,-170.668997,0.00011392,2]
[400349925,1767412196067,-170.668997,0.00011392,16]
[400349926,1767412196096,-1684.62,0.0001165,2]
[400349927,1767412196124,-221.0,0.000125,2]
[400349928,1767412196154,-372.83933996,0.00012683,2]
[400349929,1767412196184,-127.43523888,0.00012709,2]
[400349930,1767412196331,-3241.80476112,0.00012709,2]
[400349931,1767412196537,-290.23745554,0.00012709,2]
[400349932,1767412196609,-580.47491108,0.00012709,2]
[400349933,1767412196723,-1160.94982216,0.00012709,2]
[400349934,1767412196786,-7452.43149348,0.00012709,2]
[400349935,1767412196819,-225.6788622,0.00012709,2]
[400349936,1767412196848,-1422.827,0.00012734,2]
[400349937,1767412196876,-2176.266,0.00012734,2]
[400349938,1767412196908,-630.228,0.00012734,2]
[400349939,1767412196941,-416.0,0.00012734,2]
[400349940,1767412197016,-500.0,0.00012899,2]
[400349941,1767412197026,-535.92871626,0.00012899,2]
[400349942,1767412197035,-164.96371141,0.00012899,2]
[400349943,1767412197045,-500.0,0.00012899,2]
[400349944,1767412197055,-500.0,0.00012899,2]
[400349945,1767412197151,-635.77368471,0.00012899,2]
[400349946,1767412197188,-1711.86911434,0.00013173,2]
[400349947,1767412197207,-2067.11582595,0.00013173,2]
[400349948,1767412197218,-500.0,0.00013273,2]
[400349949,1767412197227,-500.0,0.00013273,2]
[400349950,1767412197237,-500.0,0.00013273,2]
[400349951,1767412197247,-182.69,0.00013621,2]
[400349952,1767412197256,-300.0,0.00013673,2]
[400349953,1767412197266,-1000.0,0.00013699,2]
[400349954,1767412197275,-661.468344,0.00013699,2]
[400349955,1767412197285,-500.0,0.00013699,2]
[400349956,1767412197295,-500.0,0.00013699,2]
[400349957,1767412197304,-500.0,0.00013699,2]
[400349958,1767412197314,-500.0,0.00013699,2]
[400349959,1767412197324,-159.47900524,0.00013699,2]
[400349960,1767412197333,-968.30700265,0.00013768,2]
[400349961,1767412197367,-4085.55299735,0.00013768,2]
[400349962,1767412197396,-828.9040053,0.000138,2]
[400349963,1767412197484,-171.0959947,0.000138,2]
[400349964,1767412197513,-1000.0,0.00013821,2]
[400349965,1767412197542,-1000.0,0.00013821,2]
[400349966,1767412197571,-1000.0,0.00013821,2]
[400349967,1767412197720,-1129.0101378,0.00014077,2]
[400349968,1767412197755,-1000.0,0.00014077,2]
[400349969,1767412197850,-171.0959947,0.00014077,2]
[400349970,1767412197865,-1000.0,0.00014077,2]
[400349971,1767412197879,-1000.0,0.00014077,2]
[400349972,1767412197904,-1000.0,0.00014077,2]
[400349973,1767412197918,-3657.8180106,0.00014077,2]
[400349974,1767412197939,-10000.01,0.00014077,2]
[400349975,1767412197953,-2117.05362175,0.00014077,2]
[400349976,1767412197963,-250.0,0.00014077,2]
[400349977,1767412197974,-250.0,0.00014077,2]
[400349978,1767412197983,-250.0,0.00014077,2]
[400349979,1767412197993,-250.0,0.00014077,2]
[400349980,1767412198006,-250.0,0.00014077,2]
[400349981,1767412198015,-250.0,0.00014077,2]
[400349982,1767412198025,-250.0,0.00014077,2]
[400349983,1767412198035,-250.0,0.00014077,2]
[400349984,1767412198046,-250.0,0.00014077,2]
[400349985,1767412198055,-250.0,0.00014077,2]
[400349986,1767412198065,-250.0,0.00014077,2]
[400349987,1767412198074,-600.0,0.00014221,2]
[400349988,1767412198084,-309.91150442,0.00014247,2]
[400349989,1767412198093,-1000.0,0.00014247,2]
[400349990,1767412198103,-1000.0,0.00014247,2]
[400349991,1767412198112,-1000.0,0.00014247,2]
[400349992,1767412198121,-1223.04487383,0.00014247,2]
[400349993,1767412198139,-776.95512617,0.00014247,2]
[400349994,1767412198148,-2000.0,0.00014247,2]
[400349995,1767412198158,-2000.0,0.00014247,2]
[400349996,1767412198167,-1500.0,0.00014368,2]
[400349997,1767412198177,-1500.0,0.00014368,2]
[400349998,1767412198186,-1500.0,0.00014368,2]
[400349999,1767412198196,-429.71313758,0.00014683,2]
[400350000,1767412198207,-293.34173625,0.00014726,2]
[400350001,1767412198226,-181.65826375,0.00014726,2]
[400350002,1767412198235,-2480.64123122,0.00014768,2]
[400350003,1767412198244,-900.0,0.00014768,2]
[400350004,1767412198253,-500.0,0.00014794,2]
[400350005,1767412198263,-1500.0,0.00014795,2]
[400350006,1767412198272,-1500.0,0.00014795,2]
[400350007,1767412198281,-1500.0,0.00014795,2]
[400350008,1767412198291,-1000.0,0.000148,3]
[400350009,1767412198300,-163.152,0.000148,2]
[400350010,1767412198309,-274.55850503,0.00014827,2]
[400350011,1767412201425,-5000.0,0.00014679,14]
[400350012,1767412201464,-0.01,0.00014827,2]
[400350013,1767412201513,-3536.09850503,0.00014827,2]
[400350014,1767412201538,-2927.81298994,0.00014827,2]
[400350015,1767412201672,-429.05170525,0.00014867,3]
[400350016,1767412201702,-453.86152314,0.000149,2]
[400350017,1767412201733,-453.86152314,0.000149,2]
[400350018,1767412201763,-453.86152314,0.000149,2]
[400350019,1767412201792,-1041.66666667,0.00014906,2]
[400350020,1767412201820,-2000.0,0.00014916,2]
[400350021,1767412201940,-2000.0,0.00014916,2]
[400350022,1767412201971,-2000.0,0.00014916,2]
[400350023,1767412202060,-0.01,0.00014988,2]
[400350024,1767412202091,-335.39411732,0.00014988,2]
[400350025,1767412202109,-2000.01,0.00014988,2]
[400350026,1767412202124,-7664.58588268,0.00014988,2]
[400350027,1767412202134,-869.3,0.00015,2]
[400350028,1767412202145,-1000.0,0.00015,2]
[400350029,1767412202155,-445.942467,0.00015068,2]
[400350030,1767412202164,-20.17165032,0.00015068,2]
[400350031,1767412202200,-779.82834968,0.00015068,2]
[400350032,1767412202226,-1037.36429423,0.00015316,2]
[400350033,1767412202254,-2000.0,0.00015342,2]
[400350034,1767412202282,-365.62471218,0.00015342,2]
[400350035,1767412202337,-1634.37528782,0.00015342,2]
[400350036,1767412202366,-2000.0,0.00015342,2]